fUSD/lending_fUSD_20260526
["ID","MTS","AMOUNT","RATE_DAILY","PERIOD"]
[423029787,1779778234000,-500.0,0.00020898,2]
[423029794,1779778234000,-500.0,0.00020898,2]
[423029889,1779778235000,-727.0,0.00021644,2]
[423029884,1779778235000,-727.0,0.00021644,2]
[423029892,1779778235000,-727.0,0.00021644,2]
[423029886,1779778235000,-727.0,0.00021644,2]
[423029893,1779778235000,-727.0,0.00021644,2]
[423029895,1779778235000,-500.0,0.00021644,2]
[423029894,1779778235000,-500.0,0.00021644,2]
[423029899,1779778235000,-500.0,0.00021644,2]
[423029901,1779778235000,-500.0,0.00021644,2]
[423029898,1779778235000,-500.0,0.00021644,2]
[423029897,1779778235000,-727.0,0.00021644,2]
[423029885,1779778235000,-727.0,0.00021644,2]
[423029906,1779778235000,-727.0,0.00021644,2]
[423029896,1779778235000,-500.0,0.00021644,2]
[423029902,1779778235000,-500.0,0.00021644,2]
[423029903,1779778235000,-727.0,0.00021644,2]
[423029904,1779778235000,-500.0,0.00021644,2]
[423029916,1779778235000,-250.9,0.00021757,2]
[423029907,1779778235000,-727.0,0.00021644,2]
[423029915,1779778235000,-1576.58500117,0.00021753,2]
[423029913,1779778235000,-739.19048623,0.00021644,2]
[423029905,1779778235000,-247.48052146,0.00021644,2]
[423029883,1779778235000,-727.0,0.00021644,2]
[423029910,1779778235000,-727.0,0.00021644,2]
[423029900,1779778235000,-500.0,0.00021644,2]
[423029890,1779778235000,-727.0,0.00021644,2]
[423029870,1779778235000,-1576.58500117,0.00021425,2]
[423029881,1779778235000,-727.0,0.00021644,2]
[423029912,1779778235000,-727.0,0.00021644,2]
[423029859,1779778235000,-194.72792766,0.00021263,2]
[423029860,1779778235000,-749.19,0.000213,2]
[423029862,1779778235000,-500.0,0.00021327,2]
[423029861,1779778235000,-500.0,0.00021327,2]
[423029867,1779778235000,-8671.77181208,0.0002133,2]
[423029864,1779778235000,-500.0,0.00021327,2]
[423029868,1779778235000,-1576.58500117,0.00021342,2]
[423029865,1779778235000,-828.52242152,0.0002133,2]
[423029866,1779778235000,-499.7057664,0.0002133,2]
[423029863,1779778235000,-500.0,0.00021327,2]
[423029888,1779778235000,-727.0,0.00021644,2]
[423029869,1779778235000,-150.0,0.0002139,2]
[423029879,1779778235000,-251.96280195,0.000216,30]
[423029877,1779778235000,-1576.58500117,0.00021589,2]
[423029878,1779778235000,-587.0,0.00021599,2]
[423029880,1779778235000,-727.0,0.00021644,2]
[423029871,1779778235000,-169.39,0.00021455,2]
[423029872,1779778235000,-169.39,0.00021455,2]
[423029875,1779778235000,-1576.58500117,0.00021507,2]
[423029873,1779778235000,-167.89454848,0.00021494,7]
[423029874,1779778235000,-167.89454849,0.00021494,30]
[423029882,1779778235000,-727.0,0.00021644,2]
[423029887,1779778235000,-727.0,0.00021644,2]
[423029876,1779778235000,-2150.13831781,0.00021524,2]
[423029911,1779778235000,-727.0,0.00021644,2]
[423029891,1779778235000,-727.0,0.00021644,2]
[423029908,1779778235000,-727.0,0.00021644,2]
[423029955,1779778235000,-1001.0,0.00022,2]
[423029950,1779778235000,-158.35180048,0.00022,2]
[423029944,1779778235000,-1925.0,0.00022,2]
[423029940,1779778235000,-150.0,0.00021963,2]
[423029943,1779778235000,-251.56666997,0.00022,10]
[423029946,1779778235000,-450.0,0.00022,2]
[423029953,1779778235000,-307.0,0.00022,2]
[423029965,1779778235000,-546.0,0.00022193,5]
[423029957,1779778235000,-205.0,0.00022,2]
[423029969,1779778235000,-167.89454849,0.00022193,30]
[423029961,1779778235000,-172.0,0.00022,2]
[423029967,1779778235000,-167.89454848,0.00022193,7]
[423029959,1779778235000,-775.57184756,0.00022,2]
[423029963,1779778235000,-857.0,0.00022,2]
[423029970,1779778235000,-948.3,0.00022353,2]
[423029972,1779778235000,-599.60298507,0.00022358,2]
[423029974,1779778235000,-623.58710447,0.00022358,2]
[423029979,1779778235000,-200.0,0.00022359,2]
[423029976,1779778235000,-1428.38747117,0.00022359,2]
[423029982,1779778235000,-2080.17592889,0.00022359,2]
[423029981,1779778235000,-209.40437684,0.00022359,2]
[423029983,1779778235000,-209.40437684,0.00022359,2]
[423029987,1779778235000,-143.76893651,0.00022466,2]
[423029985,1779778235000,-329.91,0.00022466,2]
[423029909,1779778235000,-727.0,0.00021644,2]
[423029942,1779778235000,-500.0,0.00021988,2]
[423029986,1779778235000,-950.65,0.00022466,2]
[423029984,1779778235000,-278.5545033,0.00022465,2]
[423029948,1779778235000,-167.0,0.00022,2]
[423029941,1779778235000,-1097.87980632,0.00021963,2]
[423029917,1779778235000,-150.99,0.00021757,2]
[423029920,1779778235000,-200.0,0.00021811,2]
[423029919,1779778235000,-1377.42282658,0.00021811,2]
[423029921,1779778235000,-201.93286098,0.00021811,2]
[423029924,1779778235000,-1576.58500117,0.00021836,2]
[423029922,1779778235000,-2005.9555727,0.00021811,2]
[423029927,1779778235000,-200.0,0.000219,2]
[423029918,1779778235000,-453.09,0.00021757,2]
[423029923,1779778235000,-201.93286098,0.00021811,2]
[423029925,1779778235000,-1388.0,0.00021853,2]
[423029926,1779778235000,-500.0,0.000219,2]
[423029914,1779778235000,-1576.58500117,0.00021671,2]
[423029939,1779778235000,-21387.5446811,0.00021963,2]
[423029934,1779778235000,-150.0,0.00021918,2]
[423029935,1779778235000,-200.0,0.00021918,2]
[423029945,1779778235000,-300.0,0.00022,2]
[423029937,1779778235000,-2715.15300346,0.00021963,2]
[423029933,1779778235000,-150.0,0.00021918,2]
[423029936,1779778235000,-150.0,0.00021963,2]
[423029930,1779778235000,-5000.0,0.00021918,2]
[423029931,1779778235000,-192.47,0.00021918,2]
[423029928,1779778235000,-1576.58500117,0.00021918,30]
[423029938,1779778235000,-150.0,0.00021963,2]
[423029932,1779778235000,-150.0,0.00021918,2]
[423029929,1779778235000,-151.0,0.00021918,2]
[423029990,1779778238000,-38530.00000001,0.00019426,2]
[423029996,1779778241000,-1334.94100638,0.00019426,2]
[423030003,1779778247000,-698.98608645,0.00019426,2]
[423030004,1779778247000,-330.49959062,0.00019426,2]
[423030006,1779778783000,157.18,9.059e-05,2]
[423030007,1779779341000,1000.0,0.00028078,120]
[423030013,1779779431000,-150.0,0.00011259,2]
[423030014,1779779431000,-226.0,0.00011607,2]
[423030017,1779779431000,-60.72909944,0.00012385,2]
[423030016,1779779431000,-150.0,0.00012356,2]
[423030015,1779779431000,-226.0,0.00012235,2]
[423030019,1779779431000,-150.0,0.00012786,2]
[423030033,1779779431000,-317.1374225,0.00014065,2]
[423030018,1779779431000,-189.27090056,0.00012385,2]
[423030022,1779779431000,-152.49798757,0.0001397,2]
[423030021,1779779431000,-157.18,0.00013589,2]
[423030020,1779779431000,-228.86523554,0.00012847,2]
[423030031,1779779431000,-2500.0,0.00014065,2]
[423030032,1779779431000,-1541.19535233,0.00014065,2]
[423030023,1779779431000,-62.99535233,0.00014,2]
[423030042,1779779431000,-420.0,0.00015406,2]
[423030025,1779779431000,-250.0,0.00014,2]
[423030028,1779779431000,-300.0,0.00014064,2]
[423030040,1779779431000,-150.0,0.00014947,2]
[423030041,1779779431000,-250.0,0.00015337,2]
[423030039,1779779431000,-300.0,0.000145,2]
[423030037,1779779431000,-2500.0,0.000145,2]
[423030036,1779779431000,-348.994518,0.00014427,2]
[423030038,1779779431000,-2500.0,0.000145,2]
[423030035,1779779431000,-300.0,0.00014065,2]
[423030030,1779779431000,-300.0,0.00014064,2]
[423030027,1779779431000,-300.0,0.00014064,2]
[423030026,1779779431000,-1200.0,0.00014064,2]
[423030024,1779779431000,-100.40464767,0.00014,2]
[423030029,1779779431000,-1200.0,0.00014064,2]
[423030034,1779779431000,-641.66722517,0.00014065,2]
[423030048,1779779432000,-200.0,0.00016728,2]
[423030052,1779779432000,-367.97,0.00017054,2]
[423030051,1779779432000,-166.66,0.00016892,2]
[423030050,1779779432000,-335.38,0.0001689,2]
[423030053,1779779432000,-826.59,0.00017103,2]
[423030049,1779779432000,-587.0,0.00016878,2]
[423030055,1779779432000,-500.0,0.00017687,2]
[423030045,1779779432000,-1555.0,0.00015916,2]
[423030047,1779779432000,-777.5,0.00016438,2]
[423030043,1779779432000,-300.0,0.00015406,2]
[423030054,1779779432000,-151.85,0.000173,2]
[423030044,1779779432000,-336.0,0.0001547,2]
[423030046,1779779432000,-300.0,0.00016,2]
[423030058,1779779432000,-518.75086097,0.000179,2]
[423030067,1779779432000,-200.54379795,0.000182,2]
[423030057,1779779432000,-518.75086097,0.000177,2]
[423030065,1779779432000,-518.75086097,0.000182,2]
[423030066,1779779432000,-197.93830091,0.000182,2]
[423030059,1779779432000,-500.0,0.00017954,2]
[423030060,1779779432000,-518.75086097,0.00018,2]
[423030061,1779779432000,-197.93830091,0.00018,2]
[423030062,1779779432000,-200.54379795,0.00018,2]
[423030064,1779779432000,-157.18,0.00018119,2]
[423030063,1779779432000,-350.0,0.00018,2]
[423030068,1779779432000,-2501.34322535,0.000183,2]
[423030070,1779779432000,-207033.15680557,0.0001831,2]
[423030069,1779779432000,-378.19470933,0.00018309,2]
[423030072,1779779432000,-21722.69720827,0.0001831,2]
[423030071,1779779432000,-29935.6598173,0.0001831,2]
[423030056,1779779432000,-500.0,0.00017687,2]
[423030086,1779779437000,-387.27894061,0.000183,2]
[423030087,1779779438000,-917.39276177,0.000183,2]
[423030088,1779779438000,-299.99,0.000183,2]
[423030137,1779779440000,-31625.79106886,0.0001831,2]
[423030155,1779779440000,-1272.0,0.00019676,2]
[423030153,1779779440000,-273.357,0.00019676,2]
[423030154,1779779440000,-1355.0,0.00019676,2]
[423030151,1779779440000,-3547.0,0.00019676,2]
[423030152,1779779440000,-626.0,0.00019676,2]
[423030150,1779779440000,-1659.9446,0.00019576,2]
[423030144,1779779440000,-409.7455,0.00019326,2]
[423030139,1779779440000,-500.0,0.000184,2]
[423030143,1779779440000,-826.59,0.00019241,2]
[423030138,1779779440000,-197.93830091,0.000184,2]
[423030136,1779779440000,-2185.81420482,0.000183,2]
[423030142,1779779440000,-269.45,0.00018573,2]
[423030140,1779779440000,-777.5,0.0001841,2]
[423030145,1779779440000,-152.49798757,0.00019333,2]
[423030146,1779779440000,-151.0,0.00019423,2]
[423030141,1779779440000,-823.0,0.00018489,2]
[423030147,1779779440000,-151.0,0.00019423,2]
[423030148,1779779440000,-271.492686,0.00019426,2]
[423030172,1779779440000,-1028.82247645,0.0002,2]
[423030171,1779779440000,-729.0,0.0002,2]
[423030170,1779779440000,-154.0,0.0002,2]
[423030168,1779779440000,-851.0,0.0002,2]
[423030169,1779779440000,-174.0,0.0002,2]
[423030165,1779779440000,-158.0,0.0002,2]
[423030164,1779779440000,-1022.0,0.0002,2]
[423030162,1779779440000,-150.0,0.0002,2]
[423030160,1779779440000,-255.0,0.0002,2]
[423030167,1779779440000,-261.0,0.0002,2]
[423030156,1779779440000,-1223.0,0.00019676,2]
[423030158,1779779440000,-1401.602,0.00019676,2]
[423030159,1779779440000,-1636.0,0.0002,2]
[423030157,1779779440000,-3636.0,0.00019676,2]
[423030149,1779779440000,-215.42269777,0.00019435,2]
[423030166,1779779440000,-400.0,0.0002,2]
[423030186,1779779442000,-777.5,0.00020381,2]
[423030180,1779779442000,-318.729205,0.0002,2]
[423030182,1779779442000,-151.0,0.00020175,2]
[423030181,1779779442000,-1298.50831855,0.0002,2]
[423030185,1779779442000,-2501.34322534,0.00020304,2]
[423030189,1779779442000,-5495.1970337,0.00020441,2]
[423030183,1779779442000,-151.0,0.00020175,2]
[423030188,1779779442000,-1146.1710933,0.00020441,2]
[423030187,1779779442000,-500.0,0.0002044,2]
[423030184,1779779442000,-431.0,0.00020255,2]
[423030191,1779779442000,-7339.15786016,0.00020758,2]
[423030190,1779779442000,-213.97,0.00020509,2]
[423030223,1779779443000,-174.61919141,0.00021091,2]
[423030226,1779779443000,-151.0,0.00021091,2]
[423030213,1779779443000,-851.0,0.00021,2]
[423030217,1779779443000,-154.0,0.00021,2]
[423030220,1779779443000,-729.0,0.00021,2]
[423030225,1779779443000,-1191.11104074,0.00021091,2]
[423030238,1779779443000,-746.0,0.00021267,7]
[423030228,1779779443000,-578.20924308,0.00021091,2]
[423030239,1779779443000,-3790.47590713,0.00021308,2]
[423030229,1779779443000,-151.0,0.00021091,2]
[423030193,1779779443000,-163.335,0.00020799,2]
[423030215,1779779443000,-174.0,0.00021,2]
[423030221,1779779443000,-1734.62772924,0.00021091,2]
[423030219,1779779443000,-151.0,0.00021,2]
[423030192,1779779443000,-2660.84213984,0.00020758,2]
[423030231,1779779443000,-299.120486,0.00021267,2]
[423030211,1779779443000,-261.0,0.00021,2]
[423030208,1779779443000,-3419.0,0.00021,2]
[423030209,1779779443000,-158.0,0.00021,2]
[423030197,1779779443000,-606.7009296,0.00020898,2]
[423030196,1779779443000,-862.755,0.00020894,2]
[423030198,1779779443000,-500.0,0.00020898,2]
[423030207,1779779443000,-255.0,0.00021,2]
[423030195,1779779443000,-500.0,0.00020822,7]
[423030205,1779779443000,-1636.0,0.00021,2]
[423030203,1779779443000,-500.0,0.00020898,2]
[423030200,1779779443000,-500.0,0.00020898,2]
[423030194,1779779443000,-700.0,0.00020822,7]
[423030224,1779779443000,-174.61919141,0.00021091,2]
[423030230,1779779443000,-179.36117039,0.00021091,2]
[423030222,1779779443000,-200.0,0.00021091,2]
[423030232,1779779443000,-299.120486,0.00021267,2]
[423030237,1779779443000,-151.0,0.00021267,2]
[423030264,1779779443000,-500.0,0.00021998,2]
[423030262,1779779443000,-5.94594791,0.00021998,2]
[423030263,1779779443000,-500.0,0.00021998,2]
[423030257,1779779443000,-140.12101599,0.00021918,2]
[423030260,1779779443000,-151.0,0.00021918,2]
[423030258,1779779443000,-12.31841801,0.00021918,2]
[423030261,1779779443000,-494.05405209,0.00021998,2]
[423030259,1779779443000,-151.0,0.00021918,2]
[423030265,1779779443000,-55.93405209,0.00021998,2]
[423030255,1779779443000,-20.702336,0.00021918,7]
[423030256,1779779443000,-700.0,0.00021918,7]
[423030254,1779779443000,-479.297664,0.00021918,7]
[423030248,1779779443000,-1664.73,0.00021769,2]
[423030250,1779779443000,-151.0,0.00021775,2]
[423030227,1779779443000,-601.3376128,0.00021091,2]
[423030251,1779779443000,-151.0,0.00021775,2]
[423030233,1779779443000,-153.374982,0.00021267,2]
[423030234,1779779443000,-299.120486,0.00021267,2]
[423030235,1779779443000,-299.120486,0.00021267,2]
[423030236,1779779443000,-151.0,0.00021267,2]
[423030240,1779779443000,-826.59,0.00021379,2]
[423030242,1779779443000,-200.0,0.00021543,2]
[423030241,1779779443000,-775.0,0.000215,2]
[423030245,1779779443000,-151.96089773,0.00021639,2]
[423030243,1779779443000,-1798.80895522,0.00021639,2]
[423030244,1779779443000,-200.0,0.00021639,2]
[423030247,1779779443000,-1235.18214925,0.00021639,2]
[423030253,1779779443000,-5000.0,0.00021918,2]
[423030246,1779779443000,-181.08010149,0.00021639,2]
[423030252,1779779443000,-500.0,0.000219,2]
[423030267,1779779445000,-200.54379794,0.00018,2]
[423030268,1779779445000,-315.21970206,0.00020007,2]
[423030269,1779779446000,-1348.75223853,0.000177,2]
[423030270,1779779446000,-45.54235162,0.00020007,2]
[423030275,1779779608000,184.92,9.942e-05,2]
[423030278,1779780399000,-49.00043343,0.00010699,2]
[423030277,1779780399000,-300.0,0.00010699,2]
[423030279,1779780485000,160.73,8.282e-05,2]
[423030280,1779780541000,1000.0,0.00028077,120]
[423030283,1779780608000,3048.26,0.00028082,120]
[423030298,1779780633000,-2734.05118717,0.000107,2]
[423030304,1779780633000,-177.1577695,0.00013285,2]
[423030300,1779780633000,-177.15776951,0.00011669,2]
[423030296,1779780633000,-278.52586619,0.000107,2]
[423030297,1779780633000,-7673.6,0.000107,2]
[423030295,1779780633000,-299.81600955,0.000107,2]
[423030291,1779780633000,-62.23765262,0.00010699,2]
[423030292,1779780633000,-1013.19234738,0.000107,2]
[423030293,1779780633000,-2070.64065262,0.000107,2]
[423030289,1779780633000,-78.35214341,0.00010699,2]
[423030288,1779780633000,-1121.64785659,0.00010699,2]
[423030299,1779780633000,-160.73,0.00011042,2]
[423030294,1779780633000,-467.29685263,0.000107,2]
[423030305,1779780633000,-160.73,0.00013803,2]
[423030290,1779780633000,-237.76234738,0.00010699,2]
[423030301,1779780633000,-196.12909087,0.00011769,2]
[423030314,1779780633000,-30217.85812712,0.00015,2]
[423030316,1779780633000,-255.0,0.00016124,2]
[423030315,1779780633000,-38924.19110611,0.00015,2]
[423030317,1779780633000,-156.68,0.00016259,2]
[423030312,1779780633000,-150.0,0.00014999,2]
[423030311,1779780633000,-353.79781304,0.00014999,2]
[423030313,1779780633000,-37176.43565617,0.00015,2]
[423030319,1779780633000,-93.18834064,0.00016361,2]
[423030309,1779780633000,-1826.5003102,0.00014999,2]
[423030307,1779780633000,-177.1577695,0.000149,2]
[423030306,1779780633000,-350.13640107,0.00014137,2]
[423030302,1779780633000,-1151.0,0.00011769,2]
[423030308,1779780633000,-1259.87547987,0.00014999,2]
[423030303,1779780633000,-184.92,0.00013256,2]
[423030378,1779780638000,-1213.87701468,0.00019,2]
[423030385,1779780638000,-496.62379384,0.00019322,2]
[423030376,1779780638000,-166.66,0.00018673,2]
[423030377,1779780638000,-1213.87701468,0.000188,2]
[423030370,1779780638000,-189.52255848,0.000182,2]
[423030371,1779780638000,-1213.87701468,0.000184,2]
[423030368,1779780638000,-271.2824293,0.00018132,2]
[423030386,1779780638000,-500.0,0.00019322,2]
[423030374,1779780638000,-171.90157782,0.000186,2]
[423030375,1779780638000,-1041.97543686,0.000186,2]
[423030388,1779780638000,-500.0,0.00019322,2]
[423030384,1779780638000,-543.64957386,0.00019322,2]
[423030383,1779780638000,-2842.8569304,0.00019296,2]
[423030381,1779780638000,-1213.87701468,0.000192,2]
[423030379,1779780638000,-151.0,0.00019178,2]
[423030382,1779780638000,-5012.35216965,0.00019296,2]
[423030366,1779780638000,-189.52255848,0.00018,2]
[423030390,1779780638000,-418.00775612,0.00019322,2]
[423030398,1779780638000,-500.0,0.00019322,2]
[423030394,1779780638000,-446.73281951,0.00019322,2]
[423030392,1779780638000,-500.0,0.00019322,2]
[423030396,1779780638000,-500.0,0.00019322,2]
[423030380,1779780638000,-500.0,0.00019178,2]
[423030365,1779780638000,-200.21654701,0.00018,2]
[423030372,1779780638000,-676.81005294,0.0001841,2]
[423030369,1779780638000,-1213.87701468,0.000182,2]
[423030400,1779780638000,-500.0,0.00019322,2]
[423030345,1779780638000,-61.62165936,0.00016361,2]
[423030347,1779780638000,-861.31,0.00016461,2]
[423030346,1779780638000,-771.3,0.00016438,2]
[423030348,1779780638000,-160.73,0.00016563,2]
[423030350,1779780638000,-168.07,0.00016712,2]
[423030353,1779780638000,-500.0,0.00017479,2]
[423030357,1779780638000,-599.833976,0.000176,2]
[423030356,1779780638000,-599.833976,0.000176,2]
[423030358,1779780638000,-599.833976,0.000176,2]
[423030367,1779780638000,-1213.87701468,0.000181,2]
[423030360,1779780638000,-151.0,0.000176,2]
[423030359,1779780638000,-599.833976,0.000176,2]
[423030354,1779780638000,-536.73,0.000175,2]
[423030352,1779780638000,-295.0,0.00017339,2]
[423030351,1779780638000,-473.96,0.0001728,2]
[423030349,1779780638000,-184.92,0.00016571,2]
[423030362,1779780638000,-215.42269777,0.00017618,2]
[423030363,1779780638000,-479.66459124,0.00017741,2]
[423030364,1779780638000,-1213.87701468,0.000179,2]
[423030373,1779780638000,-94.48994706,0.0001841,2]
[423030361,1779780638000,-151.0,0.000176,2]
[423030355,1779780638000,-2418.03644381,0.00017514,2]
[423030403,1779780638000,-500.0,0.00019322,2]
[423030444,1779780638000,-500.0,0.00019322,2]
[423030405,1779780638000,-500.0,0.00019322,2]
[423030457,1779780638000,-500.0,0.00019322,2]
[423030462,1779780638000,-500.0,0.00019322,2]
[423030464,1779780638000,-500.0,0.00019322,2]
[423030411,1779780638000,-500.0,0.00019322,2]
[423030466,1779780638000,-500.0,0.00019322,2]
[423030473,1779780638000,-500.0,0.00019322,2]
[423030475,1779780638000,-500.0,0.00019322,2]
[423030471,1779780638000,-500.0,0.00019322,2]
[423030469,1779780638000,-500.0,0.00019322,2]
[423030480,1779780638000,-500.0,0.00019322,2]
[423030459,1779780638000,-500.0,0.00019322,2]
[423030482,1779780638000,-500.0,0.00019322,2]
[423030488,1779780638000,-500.0,0.00019322,2]
[423030486,1779780638000,-500.0,0.00019322,2]
[423030492,1779780638000,-500.0,0.00019322,2]
[423030494,1779780638000,-500.0,0.00019322,2]
[423030490,1779780638000,-500.0,0.00019322,2]
[423030496,1779780638000,-500.0,0.00019322,2]
[423030499,1779780638000,-500.0,0.00019322,2]
[423030503,1779780638000,-500.0,0.00019322,2]
[423030505,1779780638000,-500.0,0.00019322,2]
[423030501,1779780638000,-500.0,0.00019322,2]
[423030484,1779780638000,-500.0,0.00019322,2]
[423030460,1779780638000,-500.0,0.00019322,2]
[423030478,1779780638000,-500.0,0.00019322,2]
[423030450,1779780638000,-500.0,0.00019322,2]
[423030402,1779780638000,-500.0,0.00019322,2]
[423030407,1779780638000,-496.29389716,0.00019322,2]
[423030409,1779780638000,-511.26245718,0.00019322,2]
[423030414,1779780638000,-500.0,0.00019322,2]
[423030415,1779780638000,-500.0,0.00019322,2]
[423030461,1779780638000,-500.0,0.00019322,2]
[423030417,1779780638000,-500.0,0.00019322,2]
[423030421,1779780638000,-500.0,0.00019322,2]
[423030423,1779780638000,-500.0,0.00019322,2]
[423030425,1779780638000,-500.0,0.00019322,2]
[423030427,1779780638000,-500.0,0.00019322,2]
[423030419,1779780638000,-500.0,0.00019322,2]
[423030429,1779780638000,-500.0,0.00019322,2]
[423030438,1779780638000,-500.0,0.00019322,2]
[423030434,1779780638000,-500.0,0.00019322,2]
[423030440,1779780638000,-500.0,0.00019322,2]
[423030431,1779780638000,-500.0,0.00019322,2]
[423030442,1779780638000,-500.0,0.00019322,2]
[423030452,1779780638000,-500.0,0.00019322,2]
[423030446,1779780638000,-500.0,0.00019322,2]
[423030448,1779780638000,-500.0,0.00019322,2]
[423030454,1779780638000,-500.0,0.00019322,2]
[423030436,1779780638000,-500.0,0.00019322,2]
[423030536,1779780639000,-647.53659906,0.00019322,2]
[423030522,1779780639000,-647.53659906,0.00019322,2]
[423030507,1779780639000,-500.0,0.00019322,2]
[423030532,1779780639000,-647.53659906,0.00019322,2]
[423030528,1779780639000,-647.53659906,0.00019322,2]
[423030511,1779780639000,-500.0,0.00019322,2]
[423030517,1779780639000,-647.53659906,0.00019322,2]
[423030527,1779780639000,-647.53659906,0.00019322,2]
[423030513,1779780639000,-647.53659906,0.00019322,2]
[423030509,1779780639000,-305.27769788,0.00019322,2]
[423030524,1779780639000,-647.53659906,0.00019322,2]
[423030530,1779780639000,-647.53659906,0.00019322,2]
[423030539,1779780639000,-647.53659906,0.00019322,2]
[423030515,1779780639000,-647.53659906,0.00019322,2]
[423030526,1779780639000,-647.53659906,0.00019322,2]
[423030520,1779780639000,-647.53659906,0.00019322,2]
[423030563,1779780639000,-631.96150617,0.00019322,2]
[423030556,1779780639000,-647.53659906,0.00019322,2]
[423030554,1779780639000,-647.53659906,0.00019322,2]
[423030558,1779780639000,-647.53659906,0.00019322,2]
[423030552,1779780639000,-647.53659906,0.00019322,2]
[423030534,1779780639000,-647.53659906,0.00019322,2]
[423030548,1779780639000,-647.53659906,0.00019322,2]
[423030560,1779780639000,-647.53659906,0.00019322,2]
[423030546,1779780639000,-647.53659906,0.00019322,2]
[423030545,1779780639000,-647.53659906,0.00019322,2]
[423030542,1779780639000,-647.53659906,0.00019322,2]
[423030540,1779780639000,-647.53659906,0.00019322,2]
[423030550,1779780639000,-647.53659906,0.00019322,2]
[423030974,1779780643000,-15.57509289,0.00019322,2]
[423030977,1779780643000,-556.74814437,0.00019322,2]
[423030975,1779780643000,-647.53659906,0.00019322,2]
[423030976,1779780643000,-647.53659906,0.00019322,2]
[423030979,1779780643000,-718.96517046,0.00019322,2]
[423030980,1779780643000,-718.96517046,0.00019322,2]
[423030981,1779780643000,-75.59456045,0.00019322,2]
[423030978,1779780643000,-90.78845469,0.00019322,2]
[423031030,1779780653000,-599.833976,0.00019326,2]
[423031031,1779780653000,-599.833976,0.00019326,2]
[423031039,1779780653000,-1213.87701468,0.000194,2]
[423031036,1779780653000,-151.0,0.00019326,2]
[423031022,1779780653000,-151.0,0.00019326,2]
[423031038,1779780653000,-156.68,0.00019396,2]
[423031034,1779780653000,-151.0,0.00019326,2]
[423031037,1779780653000,-114743.6226,0.00019326,2]
[423031032,1779780653000,-599.833976,0.00019326,2]
[423031035,1779780653000,-151.0,0.00019326,2]
[423031043,1779780653000,-1213.87701468,0.000196,2]
[423031042,1779780653000,-2418.03644379,0.00019503,2]
[423031050,1779780653000,-299.99999901,0.0002,2]
[423031045,1779780653000,-1734.62772924,0.0001985,2]
[423031041,1779780653000,-503.56250299,0.00019452,2]
[423031021,1779780653000,-151.0,0.00019326,2]
[423031048,1779780653000,-1473.0,0.0002,2]
[423031046,1779780653000,-184.92,0.00019885,2]
[423031044,1779780653000,-6503.42,0.00019656,2]
[423031047,1779780653000,-152.0,0.0002,2]
[423031049,1779780653000,-230.0,0.0002,2]
[423031051,1779780653000,-158.0,0.0002,2]
[423031040,1779780653000,-473.96,0.0001944,2]
[423031026,1779780653000,-217.565942,0.00019326,2]
[423031017,1779780653000,-227.02768,0.00019324,2]
[423031024,1779780653000,-151.0,0.00019326,2]
[423031000,1779780653000,-718.96517046,0.00019322,2]
[423030999,1779780653000,-643.37061001,0.00019322,2]
[423031001,1779780653000,-718.96517046,0.00019322,2]
[423031002,1779780653000,-718.96517046,0.00019322,2]